Cogmind - Beta 10.2 @@@ ROGUE MODE // 2021.04.07 @ 04:06:40 Player: thingamajigger Result: Destroyed by as-48214 with Assembled Blade Performance ------------- Evolutions (0) 0 Regions Visited (2) 400 Robots Destroyed (4) 20 Value Destroyed (133) 133 Prototype IDs (1) 20 Alien Tech Used (0) 0 Bonus (0) 0 TOTAL SCORE: 573 Bonus ------- None Cogmind --------- Core Integrity 0/250 Matter 300/300 Energy 280/280 System Corruption 0% Temperature Cool (0) Movement Rolling (90) Location -10/Mines Parts ------- > --- POWER (1) -------- Cooled Ion Engine > --- PROPULSION (2) --- Armored Wheel Armored Wheel > --- UTILITY (2) ------ Large Storage Unit Signal Interpreter > --- WEAPON (2) ------- (None) > --- INVENTORY (10) --- Cooled Ion Engine Cooled Ion Engine Cooled Ion Engine Armored Wheel Targeting Computer Peak State ------------ > --- POWER ------------ Cooled Ion Engine > --- PROPULSION ------- Armored Wheel Armored Wheel > --- UTILITY ---------- Small Storage Unit Large Storage Unit > --- WEAPON ----------- EM Pulse Gun Light Assault Rifle > --- INVENTORY -------- Cooled Ion Engine Cooled Ion Engine Cooled Ion Engine Armored Wheel Armored Wheel [Rating: 12] Favorites ----------- Power Cooled Ion Engine Engine Cooled Ion Engine Propulsion Armored Wheel Wheel Armored Wheel Utility Large Storage Unit Storage Large Storage Unit Processor Signal Interpreter Weapon EM Pulse Gun Energy Gun EM Pulse Gun Ballistic Gun Light Assault Rifle Build | -11 -10 -10 ------- Run | Scr Mat Min Slots Evolved . | . . . Power . | . . . Propulsion . | . . . Utility . | . . . Weapon . | . . . Parts Attached 12 | 6 5 1 Power 2 | 1 1 . Engine 2 | 1 1 . Core . | . . . Reactor . | . . . Propulsion 5 | 2 2 1 Treads . | . . . Leg . | . . . Wheel 5 | 2 2 1 Hover . | . . . Flight . | . . . Utility 3 | 1 2 . Device . | . . . Storage 2 | 1 1 . Processor 1 | . 1 . Hackware . | . . . Protection . | . . . Artifact . | . . . Weapon 2 | 2 . . Energy Gun 1 | 1 . . Energy Cannon . | . . . Ballistic Gun 1 | 1 . . Ballistic Cannon . | . . . Launcher . | . . . Special Weapon . | . . . Impact Weapon . | . . . Slashing Weapon . | . . . Piercing Weapon . | . . . Special Melee Weapon . | . . . Unidentified Prototypes 1 | . 1 . Parts Lost 3 | . . 3 Power . | . . . Propulsion 1 | . . 1 Utility . | . . . Weapon 2 | . . 2 Highest Loss Streak 3 | . . 3 Average Slot Usage (%) 84 | . 91 76 Engine 14 | . 14 14 Wheel 27 | . 27 28 Storage 14 | . 14 14 Processor 9 | . 6 14 Energy Gun 9 | . 14 3 Ballistic Gun 8 | . 14 1 Naked Turns . | . . . Heaviest Build 31 | 10 31 27 Greatest Support 24 | 20 24 24 Greatest Overweight (x) 2 | 2 1 1 Average Overweight (x) . | . . . Largest Inventory Capacity 12 | 6 12 10 Average Capacity 8 | 5 8 10 Most Carried 6 | 2 6 6 Average Carried 4 | . 4 5 Final Capacity 10 | 6 10 10 Final Carried 6 | 2 6 5 Class Distribution -------------------- 100% | Mutant Dominant Class ---------------- Mutant | -10/Materials Mutant | -10/Mines Resources | -11 -10 -10 ----------- Run | Scr Mat Min Matter Collected 333 | 169 146 18 Remotely . | . . . Salvage Created 146 | . 146 . Parts 9 | . 9 . Haulers Intercepted . | . . . Recyclers Shooed . | . . . Parts Field Recycled . | . . . Retrieved Matter . | . . . Parts Self-Destructed . | . . . Prevented . | . . . Kills | -11 -10 -10 ------- Run | Scr Mat Min Combat Hostiles Destroyed 2 | . 2 . Guns 2 | . 2 . Classes Destroyed 2 | . 2 . Watcher 2 | . 2 . Grunt 2 | . 2 . Best Kill Streak 2 | . 2 . Combat Bots Only 2 | . 2 . Max Kills in Single Turn 1 | . 1 . Gunslinging . | . . . Exploded . | . . . Melee . | . . . Uniques/NPCs Destroyed . | . . . Combat | -11 -10 -10 -------- Run | Scr Mat Min Damage Taken 634 | . 293 341 Core 250 | . 31 219 Absorbed by Shields . | . . . Core Remaining (%) 100 | 100 . . Volleys Fired 21 | . 18 3 Largest 2 | . 2 1 Hottest 60 | . 60 40 Shots Fired 39 | . 36 3 Gun 39 | . 36 3 Cannon . | . . . Launcher . | . . . Special . | . . . Kinetic 18 | . 18 . Thermal . | . . . Explosive . | . . . Electromagnetic 21 | . 18 3 Robot Hit Streak 4 | . 4 3 Robot Miss Streak 2 | . 2 . Penetration Max . | . . . Secondary Targets . | . . . Shots Hit Robots 26 | . 23 3 Core Hits 9 | . 8 1 Critical Hits . | . . . Critical Kills . | . . . Critical Parts Destroyed . | . . . Melee Attacks . | . . . Impact . | . . . Slashing . | . . . Piercing . | . . . Sneak Attacks . | . . . Combat Hostiles . | . . . Follow-up Attacks . | . . . Damage Inflicted 399 | . 366 33 Guns 338 | . 305 33 Cannons . | . . . Explosions 61 | . 61 . Melee . | . . . Ramming . | . . . Kinetic 55 | . 55 . Thermal 61 | . 61 . Explosive . | . . . Electromagnetic 283 | . 250 33 Impact . | . . . Slashing . | . . . Piercing . | . . . Highest Corruption . | . . . Average Corruption . | . . . Corruption Purged . | . . . Overload Shots . | . . . Overflow Damage . | . . . Projectiles . | . . . Explosions . | . . . Melee . | . . . Knockbacks . | . . . Impact . | . . . Kinetic . | . . . Secondary . | . . . Self-Inflicted Damage 36 | . 36 . Shots 1 | . 1 . Rammed . | . . . Targets Rammed . | . . . Kicked . | . . . Crushed . | . . . Highest Temperature 135 | . 135 . Average Temperature 64 | . 64 . Received Heat Transfer 144 | . 144 . Siege Activations . | . . . Robots Corrupted . | . . . Combat Hostiles . | . . . Parts Fried 2 | . 2 . Impact Corruptions . | . . . Robots Melted . | . . . Combat Hostiles . | . . . Parts Melted . | . . . Heat Transferred 100 | . 100 . Parts Sabotaged . | . . . Parts Stolen . | . . . Parts Stripped . | . . . Power Chain Reactions 1 | . 1 . Missiles Intercepted . | . . . Alert | -11 -10 -10 ------- Run | Scr Mat Min Peak Influence 240 | . 240 93 Initial 93 | . . 93 Average 92 | . 127 69 Maximum Alert Level 1 | . 1 . Low Security (%) 94 | 100 88 100 Level 1 5 | . 11 . Level 2 . | . . . Level 3 . | . . . Level 4 . | . . . Level 5 . | . . . High Security . | . . . Max Security . | . . . Squads Dispatched . | . . . Investigation . | . . . Extermination . | . . . Reinforcement . | . . . Assault . | . . . Garrison . | . . . Intercept . | . . . Construction Impeded . | . . . Haulers Reinforced . | . . . Stealth | -11 -10 -10 --------- Run | Scr Mat Min Distress Signals . | . . . Communications Jammed . | . . . Distress Signals . | . . . Times Spotted 27 | . 6 21 Peak Tracking Total 12 | . 3 12 Tactical Retreats 2 | . . 2 Traps | -11 -10 -10 ------- Run | Scr Mat Min Traps Triggered . | . . . Indirectly . | . . . Trap Hack Attempts . | . . . Triggered . | . . . Disarmed . | . . . Reprogrammed . | . . . Reused . | . . . Traps Extracted . | . . . Installed . | . . . Triggered . | . . . Machines | -11 -10 -10 ---------- Run | Scr Mat Min Machines Disabled 2 | . 2 . Max in Single Turn 1 | . 1 . Machines Sabotaged . | . . . Garrisons Compromised . | . . . Overloaded Fab Kills . | . . . Fab Network Shutdowns . | . . . Hacking | -11 -10 -10 --------- Run | Scr Mat Min Machines Accessed 2 | . 2 . Terminals 2 | . 2 . Fabricators . | . . . Repair Stations . | . . . Recycling Units . | . . . Scanalyzers . | . . . Garrison Access . | . . . Total Hacks 7 | . 7 . Successful 3 | . 3 . Failed 4 | . 4 . Catastrophic . | . . . Database Lockouts . | . . . Manual 6 | . 6 . Terminals 7 | . 7 . Fabricators . | . . . Repair Stations . | . . . Recycling Units . | . . . Scanalyzers . | . . . Garrison Access . | . . . Terminal Hacks 2 | . 2 . Terminal Index 1 | . 1 . Locate Traps 1 | . 1 . Fabricator Hacks . | . . . Repair Station Hacks . | . . . Recycling Unit Hacks . | . . . Scanalyzer . | . . . Garrison Access Hacks . | . . . Unauthorized Hacks 1 | . 1 . Terminals 1 | . 1 . Botnet 1 | . 1 . Fabricators . | . . . Repair Stations . | . . . Recycling Units . | . . . Scanalyzers . | . . . Garrison Access . | . . . Data Cores Recovered . | . . . Used . | . . . Hacking Detections 2 | . 2 . Full Trace Events . | . . . Feedback Events . | . . . Feedback Blocked . | . . . Robot Schematics Acquired . | . . . Robots Built . | . . . Matter . | . . . Time . | . . . Total Robot Build Rating . | . . . Part Schematics Acquired . | . . . Parts Built . | . . . Matter . | . . . Time . | . . . Total Part Build Rating . | . . . Parts Repaired . | . . . Time . | . . . Parts Recycled . | . . . Recycled Matter . | . . . Retrieved Matter . | . . . Retrieved Components . | . . . Parts Scanalyzed . | . . . Part Schematics Acquired . | . . . Parts Damaged . | . . . Bothacking | -11 -10 -10 ------------ Run | Scr Mat Min Used RIF Installer . | . . . Robots Hacked . | . . . Non-combat . | . . . Combat . | . . . Robot Hacks Applied . | . . . Relay Couplers Released . | . . . Robots Rewired . | . . . Allies Hacked . | . . . Hacks Repelled . | . . . Allies | -11 -10 -10 -------- Run | Scr Mat Min Total Allies . | . . . Largest Group . | . . . Highest-Rated Group . | . . . Highest-Rated Ally . | . . . Total Orders . | . . . Ally Attacks . | . . . Total Damage . | . . . Kills . | . . . Allies Corrupted . | . . . Allies Melted . | . . . Intel | -11 -10 -10 ------- Run | Scr Mat Min Robot Analysis Total . | . . . Derelict Logs Recovered 1 | . . 1 Drone Launches . | . . . Drone Recoveries . | . . . Exploration | -11 -10 -10 ------------- Run | Scr Mat Min Turns Passed 597 | 53 304 240 Spaces Moved 459 | 46 244 169 Core 14 | 14 . . Treads . | . . . Legs . | . . . Wheels 445 | 32 244 169 Hover . | . . . Flight . | . . . Fastest Speed 50 | 50 80 90 Average Speed 93 | 91 94 93 Slowest Speed 150 | 150 100 100 Overloaded Moves . | . . . Propulsion Burnouts . | . . . Robots Hopped . | . . . Cave-ins Triggered . | . . . Exploration Rate (%) 25 | 3 39 34 Regions Visited 2 Branch Regions 1 Pre-discovered Areas . | . . . Known Exits Taken 1 | . 1 . Unknown Exits Taken 1 | 1 . . Scrap Searched 1 | . . 1 Spaces Dug . | . . . Terrain Destroyed . | . . . Melee . | . . . Projectile . | . . . AOE . | . . . Terrain Rammed . | . . . Walls Destroyed . | . . . Machines Disabled . | . . . Actions | -11 -10 -10 --------- Run | Scr Mat Min Total 590 | 53 289 248 Wait 80 | . 5 75 Move 457 | 45 243 169 Hop . | . . . Pick Up 9 | 2 7 . Fast Attach 11 | 6 5 . Attach 1 | . . 1 Detach 4 | . 4 . Swap . | . . . Drop 7 | . 7 . Fire 21 | . 18 3 Melee . | . . . Ram . | . . . Kick . | . . . Crush . | . . . Escape Stasis . | . . . Rewire . | . . . Trap . | . . . Miscellaneous . | . . . Route ------- -11/Scrapyard -10/Materials (discovered 2 exits: *Mat / *Min) -10/Mines History --------- Turn | Location | Event 7 | -11/Scrapyard | Discovered new exit (range 16) 54 | -11/Scrapyard | Entered Materials 243 | -10/Materials | Discovered new exit (range 6) 247 | -10/Materials | Identified exit to Materials 300 | -10/Materials | Build established: Mutant 333 | -10/Materials | Discovered new exit (range 16) 356 | -10/Materials | Identified exit to Mines 358 | -10/Materials | Entered Mines 371 | -10/Mines | Assembled infested the area 416 | -10/Mines | Core integrity fell below 50% 448 | -10/Mines | Lost 3 parts (1n2w) 544 | -10/Mines | Learned Materials terminal intel 592 | -10/Mines | Core integrity fell below 20% 598 | -10/Mines | Destroyed by as-48214 with Assembled Blade Last Messages --------------- 00405_ as-30819 destroyed. 00405_ as-77567 destroyed. 00405_ as-51371 destroyed. 00415_ as-87652 destroyed. 00415_ Acquired 8 matter. 00417_ Arm. Wheel destroyed. 00417_ EM Pulse Gun destroyed. 00421_ The unstable cave ceiling collapses. 00421_ D-53 Grenadier destroyed. 00434_ The unstable cave ceiling collapses. 00525_ Acquired 10 matter. 00526_ The unstable cave ceiling collapses. 00540_ Searching scrap... 00540_ Found Hover Unit. 00540_ Found Sml. Storage Unit. 00540_ Found 22 Matter. 00544_ Acquired derelict log, extracted data. Data stored: Materials terminal intel. 00591_ U-05 Engineer lays Concrete. 00596_ U-05 Engineer builds a Wall. Map ----- +----------------------------------------------------+ | ?????????????????????????????????????????????????? | | ?????????????????????????????????????????????????? | | ?????????????????????????????????????????????????? | | ?????????????????????????????????????????????????? | | ?????????????????????????????????????????????????? | | ?????????????????????????????????????????????????? | | ?????????????????????????????????????????????????? | | ?????????????????????????????????????????????????? | | ?????????????????????????????????????????????????? | | ?????????????????????????????????????????????????? | | ?????????????????????????????????????????????????? | | ?????????????????????????????????????????????????? | | ?????????????????????????????????????????????????? | | ?????????????????????????????????????????????????? | | ?????????????????????????????????????????????????? | | ?????????????????????????????????????????????????? | | ????????????????????????????????????####?????????? | | ????????????????????????????????##### ###???????? | | ?????????????????????????######## ###?????? | | ????????????????????????## ##????? | | ????????????????????????# ### ##???? | | ????????????????????????# #### ##??? | | ????????????????????????# ##### ##?? | | ????????????????????##### % %#### #?? | | ????????????????????# # % #?# #?? | | ???????????????????? # @a #?# ##?? | | ???????????????????# ##?# ##??? | | ??????????????????###| ###??## #???? | | ??????????????????##!%= #????###### #???? | | ??????????????????#=*%! # # ?????????## #???? | | ????????????#######%|==u # #?????????## ##???? | | ????????????#"%" %!*=! %* ####??????# #????? | | ????????????# ######%!=%=# # # ###??# #????? | | ???????????????????# != ### #??# #????? | | ???????????????????# ## ##?# ##????? | | ???????????????????## # #?# ####?????? | | ????????????????????# # #### #?????###? | | ??????????????##?#### ###### ## | | ?????????????## ## ### # #### "# | | ?????????????# # ### ## #??# # | | ???????????### # ## # #???####### #? | | ???????????# ## #??????## ###? | | ???????????# % ### ######### ##??? | | ???????????# ##?## ## #???? | | ???????????## ##??## = ##### ##??? | | ????????????## ##???# !%#???## ##?? | | ?????????????# #???# ####????## #?? | | ?????????????### # #???# ##????????## #?? | | ?????????????## ###???# ##??????????# ##? | | ????????????## #?????## ##???????????# #? | +----------------------------------------------------+ Best States ------------- Heat Dissipation 25 Energy Generation 14 Energy Capacity 280 Matter Stores 300 Matter Capacity 300 Sight Range 16 Terrain Scan Density 10 Evasion (%) 44 Item Schematics ----------------- None Robot Schematics ------------------ None Fabricated ------------ Nothing Alien Tech Used ----------------- None Achievements -------------- None Challenges ------------ None Game ------ Seed GyrokineticLightpackBattery Manual? 0 Play Time 00:05:20 Cumulative 27.9 hours Start 2021.04.07 @ 04:02:45 End 2021.04.07 @ 04:06:40 Sessions 1 Manual Loads 0 Difficulty Rogue Special Mode None Game No. 65 Rogue 62 Adventurer 0 Explorer 3 Win Type - Total 0 Types 0/0/0/0/0/0/0/0/0 Lore% 28 Gallery% 47 Achievement% 30 Wizard Run 0 Options --------- ASCII 0 Keyboard 1 Movement Numpad Keybinds 0 Fullscreen 1 Font 18/SmallcapsGlow Map View 76x50 Tactical HUD 1 Map Filters NONE Filters NONE Steam 1 RUN: 6c4a2b41-c138-437f-9915-761a416e7aab